{"text_format":"1","workbook":"xlsx","n_sheets":4,"sheets":["Einstellungen","TeilnehmerInnen","Versicherung","Notfallliste"],"not_rendered":{"charts":0,"images":2,"macros":1,"external_links":0,"defined_names":2,"comments":0,"pivot_tables":0},"unopened":[],"bounds":{"document_bytes":16777216,"sheet_cells":100000,"rows_first":2000,"rows_last":500,"rows_between":2000,"halvings":0,"cell_chars":16384,"cell_head_chars":4096},"cells_cut":0,"cells_raw":0,"read":"whole","date_system":"1900"}

{"sheet":"Einstellungen","index":0,"n_rows":24,"n_cols":10,"rows_kept":24,"cut":false,"hidden":false,"merged":[[3,1,10,5]]}
[]
[null,"Liebe*r Aktionsgruppenleiter*in"]
[]
[null,"mit der folgenden Excel-Tabelle wollen wir Dir helfen, die Daten Deiner Aktionsgruppenmitglieder möglichst einfach zu verwalten. Wenn Du unten den Reiter Teilnehmer*innen auswählst, hast Du die Möglichkeit, die Daten vom Anmeldezettel zu erfassen. Die Reiter KoKreis-Liste und Shirtliste wird dann automatisch mit den relevanten Daten gefüllt, so dass Du diese nur noch ausdrucken musst und dann entsprechend verwenden kannst.",null,null,null,null,null,null,"Ein paar Daten brauchen wir noch von Dir"]
[]
[null,null,null,null,null,null,null,null,"Aktionsgruppenleiter*in:","Stoppi Stopper"]
[null,null,null,null,null,null,null,null,"Handynummer:","7272 7272"]
[null,null,null,null,null,null,null,null,"Euer Shirtpreis:",0]
[null,null,null,null,null,null,null,null,"Euer KoKreis:","KoKreis Stoppis"]
[null,null,null,null,null,null,null,null,"Euer Name:","Die Stoppis"]
[]
[]
[null,"Bitte hier unterhalb nichts verändern, danke"]
[null,"Shirtgröße","Shirtart","Medienerlaubnis","Kleingruppen","Übernachten"]
[null,"134/140","Basic","ja","ja","ja"]
[null,"146/152","Damen","nein","nein","nein"]
[null,"S","Kinder"]
[null,"M"]
[null,"L"]
[null,"XL"]
[null,"XXL"]
[null,"3XL"]
[null,"4XL"]
[null,"5XL"]

{"sheet":"TeilnehmerInnen","index":1,"n_rows":3,"n_cols":14,"rows_kept":3,"cut":false,"hidden":false,"merged":[[1,9,1,10],[1,11,1,13],[0,0,1,5]]}
["Teilnehmer*innen der Aktionsgruppe"]
[null,null,null,null,null,null,null,null,null,"Shirt",null,"Einschränkung"]
["Vorname","Nachname","Straße/Nr","PLZ","Ort","Geburtstag","Telefon","Allergien","Notfallkontakt","Typ","Größe","Medien","KG","Übern"]

{"sheet":"Versicherung","index":2,"n_rows":95,"n_cols":2,"rows_kept":95,"cut":false,"hidden":false,"merged":[[0,0,1,7]]}
["Teilnehmer*innen der Aktionsgruppe - Versicherungsübersicht"]
[]
[{"$f":"Einstellungen!J10&\", Leiter: \"&Einstellungen!J6&\" (\"&Einstellungen!J7&\")\"","v":"Die Stoppis, Leiter: Stoppi Stopper (7272 7272)"}]
[]
["Vorname","Nachname"]
[{"$f":"TeilnehmerInnen!A4","v":0},{"$f":"TeilnehmerInnen!B4","v":0}]
[{"$f":"TeilnehmerInnen!A5","v":0},{"$f":"TeilnehmerInnen!B5","v":0}]
[{"$f":"TeilnehmerInnen!A6","v":0},{"$f":"TeilnehmerInnen!B6","v":0}]
[{"$f":"TeilnehmerInnen!A7","v":0},{"$f":"TeilnehmerInnen!B7","v":0}]
[{"$f":"TeilnehmerInnen!A8","v":0},{"$f":"TeilnehmerInnen!B8","v":0}]
[{"$f":"TeilnehmerInnen!A9","v":0},{"$f":"TeilnehmerInnen!B9","v":0}]
[{"$f":"TeilnehmerInnen!A10","v":0},{"$f":"TeilnehmerInnen!B10","v":0}]
[{"$f":"TeilnehmerInnen!A11","v":0},{"$f":"TeilnehmerInnen!B11","v":0}]
[{"$f":"TeilnehmerInnen!A12","v":0},{"$f":"TeilnehmerInnen!B12","v":0}]
[{"$f":"TeilnehmerInnen!A13","v":0},{"$f":"TeilnehmerInnen!B13","v":0}]
[{"$f":"TeilnehmerInnen!A14","v":0},{"$f":"TeilnehmerInnen!B14","v":0}]
[{"$f":"TeilnehmerInnen!A15","v":0},{"$f":"TeilnehmerInnen!B15","v":0}]
[{"$f":"TeilnehmerInnen!A16","v":0},{"$f":"TeilnehmerInnen!B16","v":0}]
[{"$f":"TeilnehmerInnen!A17","v":0},{"$f":"TeilnehmerInnen!B17","v":0}]
[{"$f":"TeilnehmerInnen!A18","v":0},{"$f":"TeilnehmerInnen!B18","v":0}]
[{"$f":"TeilnehmerInnen!A19","v":0},{"$f":"TeilnehmerInnen!B19","v":0}]
[{"$f":"TeilnehmerInnen!A20","v":0},{"$f":"TeilnehmerInnen!B20","v":0}]
[{"$f":"TeilnehmerInnen!A21","v":0},{"$f":"TeilnehmerInnen!B21","v":0}]
[{"$f":"TeilnehmerInnen!A22","v":0},{"$f":"TeilnehmerInnen!B22","v":0}]
[{"$f":"TeilnehmerInnen!A23","v":0},{"$f":"TeilnehmerInnen!B23","v":0}]
[{"$f":"TeilnehmerInnen!A24","v":0},{"$f":"TeilnehmerInnen!B24","v":0}]
[{"$f":"TeilnehmerInnen!A25","v":0},{"$f":"TeilnehmerInnen!B25","v":0}]
[{"$f":"TeilnehmerInnen!A26","v":0},{"$f":"TeilnehmerInnen!B26","v":0}]
[{"$f":"TeilnehmerInnen!A27","v":0},{"$f":"TeilnehmerInnen!B27","v":0}]
[{"$f":"TeilnehmerInnen!A28","v":0},{"$f":"TeilnehmerInnen!B28","v":0}]
[{"$f":"TeilnehmerInnen!A29","v":0},{"$f":"TeilnehmerInnen!B29","v":0}]
[{"$f":"TeilnehmerInnen!A30","v":0},{"$f":"TeilnehmerInnen!B30","v":0}]
[{"$f":"TeilnehmerInnen!A31","v":0},{"$f":"TeilnehmerInnen!B31","v":0}]
[{"$f":"TeilnehmerInnen!A32","v":0},{"$f":"TeilnehmerInnen!B32","v":0}]
[{"$f":"TeilnehmerInnen!A33","v":0},{"$f":"TeilnehmerInnen!B33","v":0}]
[{"$f":"TeilnehmerInnen!A34","v":0},{"$f":"TeilnehmerInnen!B34","v":0}]
[{"$f":"TeilnehmerInnen!A35","v":0},{"$f":"TeilnehmerInnen!B35","v":0}]
[{"$f":"TeilnehmerInnen!A36","v":0},{"$f":"TeilnehmerInnen!B36","v":0}]
[{"$f":"TeilnehmerInnen!A37","v":0},{"$f":"TeilnehmerInnen!B37","v":0}]
[{"$f":"TeilnehmerInnen!A38","v":0},{"$f":"TeilnehmerInnen!B38","v":0}]
[{"$f":"TeilnehmerInnen!A39","v":0},{"$f":"TeilnehmerInnen!B39","v":0}]
[{"$f":"TeilnehmerInnen!A40","v":0},{"$f":"TeilnehmerInnen!B40","v":0}]
[{"$f":"TeilnehmerInnen!A41","v":0},{"$f":"TeilnehmerInnen!B41","v":0}]
[{"$f":"TeilnehmerInnen!A42","v":0},{"$f":"TeilnehmerInnen!B42","v":0}]
[{"$f":"TeilnehmerInnen!A43","v":0},{"$f":"TeilnehmerInnen!B43","v":0}]
[{"$f":"TeilnehmerInnen!A44","v":0},{"$f":"TeilnehmerInnen!B44","v":0}]
[{"$f":"TeilnehmerInnen!A45","v":0},{"$f":"TeilnehmerInnen!B45","v":0}]
[{"$f":"TeilnehmerInnen!A46","v":0},{"$f":"TeilnehmerInnen!B46","v":0}]
[{"$f":"TeilnehmerInnen!A47","v":0},{"$f":"TeilnehmerInnen!B47","v":0}]
[{"$f":"TeilnehmerInnen!A48","v":0},{"$f":"TeilnehmerInnen!B48","v":0}]
[{"$f":"TeilnehmerInnen!A49","v":0},{"$f":"TeilnehmerInnen!B49","v":0}]
[{"$f":"TeilnehmerInnen!A50","v":0},{"$f":"TeilnehmerInnen!B50","v":0}]
[{"$f":"TeilnehmerInnen!A51","v":0},{"$f":"TeilnehmerInnen!B51","v":0}]
[{"$f":"TeilnehmerInnen!A52","v":0},{"$f":"TeilnehmerInnen!B52","v":0}]
[{"$f":"TeilnehmerInnen!A53","v":0},{"$f":"TeilnehmerInnen!B53","v":0}]
[{"$f":"TeilnehmerInnen!A54","v":0},{"$f":"TeilnehmerInnen!B54","v":0}]
[{"$f":"TeilnehmerInnen!A55","v":0},{"$f":"TeilnehmerInnen!B55","v":0}]
[{"$f":"TeilnehmerInnen!A56","v":0},{"$f":"TeilnehmerInnen!B56","v":0}]
[{"$f":"TeilnehmerInnen!A57","v":0},{"$f":"TeilnehmerInnen!B57","v":0}]
[{"$f":"TeilnehmerInnen!A58","v":0},{"$f":"TeilnehmerInnen!B58","v":0}]
[{"$f":"TeilnehmerInnen!A59","v":0},{"$f":"TeilnehmerInnen!B59","v":0}]
[{"$f":"TeilnehmerInnen!A60","v":0},{"$f":"TeilnehmerInnen!B60","v":0}]
[{"$f":"TeilnehmerInnen!A61","v":0},{"$f":"TeilnehmerInnen!B61","v":0}]
[{"$f":"TeilnehmerInnen!A62","v":0},{"$f":"TeilnehmerInnen!B62","v":0}]
[{"$f":"TeilnehmerInnen!A63","v":0},{"$f":"TeilnehmerInnen!B63","v":0}]
[{"$f":"TeilnehmerInnen!A64","v":0},{"$f":"TeilnehmerInnen!B64","v":0}]
[{"$f":"TeilnehmerInnen!A65","v":0},{"$f":"TeilnehmerInnen!B65","v":0}]
[{"$f":"TeilnehmerInnen!A66","v":0},{"$f":"TeilnehmerInnen!B66","v":0}]
[{"$f":"TeilnehmerInnen!A67","v":0},{"$f":"TeilnehmerInnen!B67","v":0}]
[{"$f":"TeilnehmerInnen!A68","v":0},{"$f":"TeilnehmerInnen!B68","v":0}]
[{"$f":"TeilnehmerInnen!A69","v":0},{"$f":"TeilnehmerInnen!B69","v":0}]
[{"$f":"TeilnehmerInnen!A70","v":0},{"$f":"TeilnehmerInnen!B70","v":0}]
[{"$f":"TeilnehmerInnen!A71","v":0},{"$f":"TeilnehmerInnen!B71","v":0}]
[{"$f":"TeilnehmerInnen!A72","v":0},{"$f":"TeilnehmerInnen!B72","v":0}]
[{"$f":"TeilnehmerInnen!A73","v":0},{"$f":"TeilnehmerInnen!B73","v":0}]
[{"$f":"TeilnehmerInnen!A74","v":0},{"$f":"TeilnehmerInnen!B74","v":0}]
[{"$f":"TeilnehmerInnen!A75","v":0},{"$f":"TeilnehmerInnen!B75","v":0}]
[{"$f":"TeilnehmerInnen!A76","v":0},{"$f":"TeilnehmerInnen!B76","v":0}]
[{"$f":"TeilnehmerInnen!A77","v":0},{"$f":"TeilnehmerInnen!B77","v":0}]
[{"$f":"TeilnehmerInnen!A78","v":0},{"$f":"TeilnehmerInnen!B78","v":0}]
[{"$f":"TeilnehmerInnen!A79","v":0},{"$f":"TeilnehmerInnen!B79","v":0}]
[{"$f":"TeilnehmerInnen!A80","v":0},{"$f":"TeilnehmerInnen!B80","v":0}]
[{"$f":"TeilnehmerInnen!A81","v":0},{"$f":"TeilnehmerInnen!B81","v":0}]
[{"$f":"TeilnehmerInnen!A82","v":0},{"$f":"TeilnehmerInnen!B82","v":0}]
[{"$f":"TeilnehmerInnen!A83","v":0},{"$f":"TeilnehmerInnen!B83","v":0}]
[{"$f":"TeilnehmerInnen!A84","v":0},{"$f":"TeilnehmerInnen!B84","v":0}]
[{"$f":"TeilnehmerInnen!A85","v":0},{"$f":"TeilnehmerInnen!B85","v":0}]
[{"$f":"TeilnehmerInnen!A86","v":0},{"$f":"TeilnehmerInnen!B86","v":0}]
[{"$f":"TeilnehmerInnen!A87","v":0},{"$f":"TeilnehmerInnen!B87","v":0}]
[{"$f":"TeilnehmerInnen!A88","v":0},{"$f":"TeilnehmerInnen!B88","v":0}]
[{"$f":"TeilnehmerInnen!A89","v":0},{"$f":"TeilnehmerInnen!B89","v":0}]
[{"$f":"TeilnehmerInnen!A90","v":0},{"$f":"TeilnehmerInnen!B90","v":0}]
[{"$f":"TeilnehmerInnen!A91","v":0},{"$f":"TeilnehmerInnen!B91","v":0}]
[{"$f":"TeilnehmerInnen!A92","v":0},{"$f":"TeilnehmerInnen!B92","v":0}]
[{"$f":"TeilnehmerInnen!A93","v":0},{"$f":"TeilnehmerInnen!B93","v":0}]

{"sheet":"Notfallliste","index":3,"n_rows":5,"n_cols":12,"rows_kept":5,"cut":false,"hidden":false,"merged":[[0,7,2,7],[0,8,2,8],[0,9,2,9],[0,10,2,10],[0,11,2,11]]}
["Teilnehmer*innen der Aktionsgruppe (in dieser Tabelle bitte nichts eintragen)",null,null,null,null,null,null,"verletzt","noch in Gefahr","vermisst","betroffen (Schock)","in Sicherheit"]
[{"$f":"Einstellungen!J10&\", Leiter: \"&Einstellungen!J6&\" (\"&Einstellungen!J7&\")\"","v":"Die Stoppis, Leiter: Stoppi Stopper (7272 7272)"}]
["Nr","Nachname","Vorname","Telefon","Geburtstag","Notfallkontakt","Allergien"]
[1,"test","hallo","2240-03-13","1900-01-23","mama","alles"]
[2]